bitfinex/quotes_SOLUSD_20260309
["timestamp","ask_amount","ask_price","bid_price","bid_amount"]
[1773049561193,0.93241258,84.539,84.501,0.92728259]
[1773049561800,0.93241258,84.537,84.501,12.7613252]
[1773049561999,0.93241258,84.537,84.502,0.92728259]
[1773049562300,0.93241258,84.537,84.511,0.92728259]
[1773049562507,0.93241258,84.537,84.503,0.92728259]
[1773049563001,0.93241258,84.537,84.5,4.29903173]
[1773049563207,0.96343554,84.529,84.496,11.83482288]
[1773049563397,0.96343554,84.529,84.491,11.83548561]
[1773049563903,1.24775868,84.527,84.49,4.29903173]
[1773049564104,0.96343554,84.519,84.488,0.87839947]
[1773049564705,0.96343554,84.526,84.491,0.87839947]
[1773049565593,0.96343554,84.519,84.491,0.87839947]
[1773049565793,0.96343554,84.519,84.488,11.83590011]
[1773049566199,0.96343554,84.517,84.488,11.83590011]
[1773049566905,11.83179914,84.518,84.491,0.87839947]
[1773049567108,0.96343554,84.509,84.47,4.29903173]
[1773049567410,0.96343554,84.509,84.474,0.87839947]
[1773049568398,0.96343554,84.507,84.475,0.87839947]
[1773049568685,11.83319922,84.508,84.469,11.83856238]
[1773049568686,4.29903173,84.5,84.469,11.83856238]
[1773049568905,0.96343554,84.506,84.471,0.87839947]
[1773049569210,0.96343554,84.506,84.481,0.87839947]
[1773049570004,11.83219341,84.516,84.491,0.87839947]
[1773049570507,59.14189374,84.543,84.49,4.29903173]
[1773049570508,0.96343554,84.521,84.493,0.87839947]
[1773049570692,4.29903173,84.55,84.511,0.87839947]
[1773049571109,4.29903173,84.55,84.51,4.29903173]
[1773049571110,4.29903173,84.54,84.503,0.87839947]
[1773049572497,4.29903173,84.53,84.503,0.87839947]
[1773049572686,0.96343554,84.53,84.503,0.87839947]
[1773049573220,0.96343554,84.538,84.511,0.87839947]
[1773049573798,11.82718122,84.551,84.521,0.87839947]
[1773049574000,0.96343554,84.559,84.531,0.87839947]
[1773049574219,12.78963767,84.558,84.531,0.87839947]
[1773049574596,12.78963767,84.558,84.532,11.82983958]
[1773049574911,0.96343554,84.572,84.541,0.87839947]
[1773049575120,11.82438424,84.571,84.541,0.87839947]
[1773049575500,5.26246727,84.57,84.541,0.87839947]
[1773049575694,5.26246727,84.57,84.523,0.87839947]
[1773049575695,0.96343554,84.569,84.523,0.87839947]
[1773049575895,0.96343554,84.539,84.511,0.87839947]
[1773049576110,0.96343554,84.539,84.483,11.83670087]
[1773049576111,4.29903173,84.53,84.503,0.87839947]
[1773049576411,0.96343554,84.531,84.503,0.87839947]
[1773049576614,12.79229559,84.539,84.504,11.83375934]
[1773049576815,0.96343554,84.538,84.505,0.87839947]
[1773049577027,0.96343554,84.538,84.489,0.87839947]
[1773049577028,0.96343554,84.519,84.489,0.87839947]
[1773049577189,4.29903173,84.51,84.473,0.87839947]
[1773049577394,0.96343554,84.509,84.473,0.87839947]
[1773049577612,0.28432314,84.535,84.473,0.87839947]
[1773049577613,0.96343554,84.499,84.473,0.87839947]
[1773049578721,0.96343554,84.488,84.461,11.83969525]
[1773049579095,11.52999178,84.48,84.44,41.13672987]
[1773049579301,0.96343554,84.479,84.442,0.87839947]
[1773049580799,11.52999178,84.46,84.434,11.8435401]
[1773049581193,12.49342732,84.46,84.433,0.87839947]
[1773049581399,11.52999178,84.44,84.42,0.2]
[1773049582000,11.52999178,84.45,84.421,12.72379338]
[1773049582217,11.52999178,84.45,84.422,0.87839947]
[1773049582519,11.52999178,84.44,84.42,0.2]
[1773049583027,0.96343554,84.472,84.431,0.87839947]
[1773049583197,0.28432314,84.467,84.431,0.87839947]
[1773049583404,29.59731362,84.468,84.431,0.87839947]
[1773049583919,11.52999178,84.46,84.431,0.87839947]
[1773049584120,0.96343554,84.459,84.431,0.87839947]
[1773049584613,11.52999178,84.47,84.431,0.87839947]
[1773049584995,0.96343554,84.469,84.441,0.87839947]
[1773049585304,0.96343554,84.469,84.433,0.87839947]
[1773049585615,52.96486329,84.47,84.421,0.87839947]
[1773049585616,11.52999178,84.45,84.421,0.87839947]
[1773049585815,0.96343554,84.459,84.421,0.87839947]
[1773049586219,11.52999178,84.45,84.421,0.87839947]
[1773049586516,11.84020459,84.458,84.423,0.87839947]
[1773049586712,11.52999178,84.46,84.431,0.87839947]
[1773049586911,23.37001569,84.46,84.431,0.87839947]
[1773049587613,0.96343554,84.459,84.431,0.87839947]
[1773049587916,11.52999178,84.45,84.423,0.87839947]
[1773049588095,41.43983447,84.46,84.421,0.87839947]
[1773049588096,11.84002391,84.46,84.421,0.87839947]
[1773049588308,23.37001569,84.46,84.431,0.87839947]
[1773049588492,11.52999178,84.47,84.441,0.87839947]
[1773049588706,1.24775868,84.469,84.432,11.84385067]
[1773049588909,11.52999178,84.44,84.42,0.2]
[1773049589096,11.52999178,84.45,84.422,0.87839947]
[1773049590009,0.96343554,84.459,84.422,0.87839947]
[1773049590209,11.52999178,84.45,84.422,0.87839947]
[1773049590608,11.84146644,84.449,84.422,0.87839947]
[1773049591426,11.84146644,84.449,84.421,11.84539391]
[1773049591427,11.84146644,84.449,84.424,0.87839947]
[1773049592521,12.49342732,84.44,84.42,0.2]
[1773049593112,11.52999178,84.44,84.42,0.2]
[1773049594124,11.52999178,84.44,84.4,41.35068865]
[1773049594125,11.52999178,84.43,84.403,0.85475798]
[1773049594417,41.44513255,84.449,84.377,11.85149888]
[1773049594418,0.8672865,84.408,84.377,11.85149888]
[1773049594597,11.52999178,84.39,84.377,11.85149888]
[1773049594802,11.52999178,84.39,84.366,0.85475798]
[1773049595310,0.8672865,84.399,84.366,0.85475798]
[1773049595521,0.55337782,84.399,84.366,0.85475798]
[1773049595737,41.4647727,84.409,84.366,0.85475798]
[1773049596021,11.52999178,84.4,84.366,0.85475798]
[1773049596322,11.52999178,84.38,84.36,0.2]
[1773049596519,11.52999178,84.38,84.361,0.85475798]
[1773049596900,11.52999178,84.39,84.361,0.85475798]
[1773049597103,11.52999178,84.4,84.361,0.85475798]
[1773049597332,11.52999178,84.41,84.371,0.85475798]
[1773049597519,11.52999178,84.4,84.371,0.85475798]
[1773049599014,11.84848161,84.399,84.373,0.85475798]
[1773049600012,11.84848161,84.399,84.375,0.85475798]
[1773049600432,11.52999178,84.39,84.369,11.85260277]
[1773049600722,11.52999178,84.39,84.37,0.85475798]
[1773049601120,11.52999178,84.4,84.371,0.85475798]
[1773049601624,12.39727828,84.39,84.369,11.85260277]
[1773049602014,11.84988564,84.389,84.362,0.85475798]
[1773049603215,11.84988564,84.389,84.364,0.85475798]
[1773049603622,11.52999178,84.38,84.363,11.85353768]
[1773049604027,11.84988564,84.389,84.36,0.2]
[1773049604028,11.52999178,84.37,84.36,0.2]
[1773049604230,0.8672865,84.379,84.36,0.2]
[1773049604422,11.52999178,84.38,84.36,0.2]
[1773049605119,0.8672865,84.377,84.36,1e-08]
[1773049606134,11.52999178,84.37,84.35,0.2]
[1773049606322,12.39727828,84.37,84.35,0.2]
[1773049606526,0.8672865,84.369,84.35,0.2]
[1773049607019,11.85211155,84.374,84.35,1.05475798]
[1773049607626,11.85211155,84.374,84.35,12.91008617]
[1773049607828,11.85211155,84.374,84.35,12.05532819]
[1773049608128,11.52999178,84.37,84.35,0.2]
[1773049608330,0.92471961,84.369,84.35,0.2]
[1773049609211,11.85283519,84.368,84.35,0.2]
[1773049609528,12.7775548,84.368,84.35,0.2]
[1773049610643,12.7775548,84.368,84.34,1e-08]
[1773049610644,0.92471961,84.359,84.34,1e-08]
[1773049610939,11.52999178,84.35,84.34,1e-08]
[1773049611108,11.8555051,84.349,84.323,0.90201213]
[1773049611311,11.52999178,84.34,84.323,0.90201213]
[1773049611533,0.92471961,84.359,84.325,0.90201213]
[1773049611743,11.52999178,84.35,84.325,0.90201213]
[1773049612033,30.55724467,84.367,84.331,0.90201213]
[1773049612221,0.92471961,84.366,84.331,0.90201213]
[1773049612623,11.52999178,84.37,84.331,0.90201213]
[1773049613141,11.52999178,84.36,84.331,0.90201213]
[1773049614233,0.92471961,84.349,84.321,0.90201213]
[1773049614439,11.52999178,84.35,84.321,0.90201213]
[1773049614645,11.52999178,84.34,84.321,0.90201213]
[1773049615020,11.52999178,84.34,84.315,11.86022343]
[1773049615330,11.52999178,84.34,84.312,0.90201213]
[1773049615732,4.32206188,84.34,84.312,0.90201213]
[1773049615942,0.92471961,84.348,84.312,0.90201213]
[1773049616522,11.85578621,84.347,84.314,0.90201213]
[1773049616719,4.32206188,84.36,84.331,0.90201213]
[1773049617231,11.85436592,84.358,84.331,0.90201213]
[1773049617432,0.92471961,84.357,84.331,0.90201213]
[1773049617940,4.32053366,84.35,84.32,0.90201213]
[1773049618138,11.85436592,84.358,84.321,0.90201213]
[1773049618523,11.85436592,84.358,84.31,0.2]
[1773049618524,12.61250666,84.364,84.331,0.90201213]
[1773049620042,12.61250666,84.364,84.333,0.90201213]
[1773049620242,12.61250666,84.364,84.341,0.90201213]
[1773049620243,0.759,84.364,84.341,0.90201213]
[1773049620461,4.32053366,84.38,84.351,0.90201213]
[1773049620748,4.32053366,84.38,84.35,4.32053366]
[1773049620749,11.84960481,84.391,84.361,0.90201213]
[1773049620924,4.32053366,84.38,84.351,0.90201213]
[1773049621348,0.92471961,84.382,84.351,0.90201213]
[1773049621942,11.85100911,84.381,84.353,0.90201213]
[1773049622155,0.92471961,84.379,84.353,0.90201213]
[1773049622849,0.92471961,84.379,84.345,0.90201213]
[1773049623144,0.92547649,84.38,84.351,0.89646362]
[1773049623333,12.49047755,84.38,84.351,0.89646362]
[1773049623636,0.92547649,84.379,84.351,0.89646362]
[1773049624045,11.85143046,84.378,84.351,0.89646362]
[1773049624247,0.92547649,84.377,84.342,0.89646362]
[1773049624543,41.48000662,84.378,84.342,0.89646362]
[1773049624919,11.85083331,84.383,84.351,0.89646362]
[1773049626021,11.56500106,84.37,84.351,0.89646362]
[1773049626224,0.92547649,84.369,84.338,0.89646362]
[1773049627423,0.92547649,84.369,84.337,11.8571113]
[1773049627624,0.92547649,84.369,84.338,0.89646362]
[1773049628029,12.49047755,84.36,84.333,11.85771776]
[1773049628225,11.56500106,84.37,84.333,0.89646362]
[1773049628425,0.92547649,84.381,84.341,0.89646362]
[1773049628622,0.92547649,84.369,84.333,0.89646362]
[1773049629742,12.49047755,84.36,84.333,0.89646362]
[1773049630042,0.92547649,84.359,84.333,0.89646362]
[1773049630541,11.85424026,84.358,84.335,0.89646362]
[1773049631124,12.77971675,84.358,84.335,0.89646362]
[1773049632235,0.92547649,84.357,84.329,11.85831683]
[1773049632433,41.48984091,84.358,84.332,0.89646362]
[1773049632434,11.85424026,84.358,84.332,0.89646362]
[1773049633542,11.85374349,84.362,84.341,0.89646362]
[1773049634445,0.92547649,84.359,84.331,11.85803559]
[1773049634842,0.92547649,84.359,84.324,0.89646362]
[1773049635148,0.92547649,84.349,84.324,0.89646362]
[1773049635744,0.92547649,84.349,84.318,11.85976869]
[1773049635929,0.92547649,84.349,84.319,0.89646362]
[1773049636125,0.28432314,84.367,84.321,0.89646362]
[1773049636126,11.56500106,84.36,84.321,0.89646362]
[1773049636342,0.92547649,84.359,84.321,0.89646362]
[1773049637849,0.92547649,84.359,84.31,0.2]
[1773049637850,11.85424026,84.358,84.331,0.89646362]
[1773049638429,0.92547649,84.357,84.331,0.89646362]
[1773049639453,11.56500106,84.35,84.323,0.89646362]
[1773049639747,0.92547649,84.357,84.323,0.89646362]
[1773049639992,0.92547649,84.355,84.325,0.89646362]
[1773049640245,0.92547649,84.349,84.317,0.89646362]
[1773049641954,0.92547649,84.349,84.31,0.2]
[1773049641955,0.92547649,84.329,84.31,0.2]
[1773049642134,11.56500106,84.32,84.298,0.89646362]
[1773049642337,0.92547649,84.329,84.299,11.86253692]
[1773049642648,0.92547649,84.329,84.299,0.89646362]
[1773049642862,0.92547649,84.339,84.301,0.89646362]
[1773049643027,11.85564565,84.348,84.321,0.89646362]
[1773049643932,11.85494291,84.353,84.322,11.85930124]
[1773049644141,0.92547649,84.352,84.322,11.85930124]
[1773049644347,0.92547649,84.349,84.322,0.89646362]
[1773049644554,11.85494291,84.353,84.322,0.89646362]
[1773049644753,0.92547649,84.352,84.322,0.89646362]
[1773049645065,0.92547649,84.349,84.314,0.89646362]
[1773049645727,0.92547649,84.348,84.31,0.89646362]
[1773049645940,12.78252787,84.338,84.311,11.86084852]
[1773049646157,0.92547649,84.337,84.31,0.89646362]
[1773049647045,0.92547649,84.337,84.302,0.89646362]
[1773049647249,0.92547649,84.329,84.294,0.89646362]
[1773049648026,0.92547649,84.327,84.291,0.89646362]
[1773049648439,0.92547649,84.319,84.29,0.2]
[1773049648953,41.50460107,84.328,84.267,0.89646362]
[1773049648954,0.92547649,84.299,84.267,0.89646362]
[1773049649174,0.92547649,84.299,84.268,0.89646362]
[1773049649451,0.92547649,84.317,84.281,0.89646362]
[1773049649649,0.92547649,84.325,84.291,0.89646362]
[1773049649954,41.50460107,84.328,84.291,0.89646362]
[1773049650152,0.92547649,84.327,84.293,0.89646362]
[1773049651158,11.85845745,84.328,84.301,0.89646362]
[1773049651751,29.64222367,84.34,84.311,0.89646362]
[1773049651936,0.92547649,84.338,84.311,0.89646362]
[1773049652136,11.85719197,84.337,84.312,12.75717146]
[1773049652361,11.85578621,84.347,84.313,0.89646362]
[1773049652870,11.56500106,84.34,84.313,0.89646362]
[1773049653156,0.90441538,84.346,84.313,0.89646362]
[1773049654157,0.90441538,84.339,84.313,0.89646362]
[1773049654540,41.49967985,84.338,84.313,0.89646362]
[1773049654849,0.90441538,84.337,84.313,0.89646362]
[1773049655257,11.56500106,84.36,84.321,0.87945062]
[1773049655445,0.90441538,84.37,84.331,0.87945062]
[1773049655446,0.90441538,84.369,84.331,0.87945062]
[1773049655644,0.90441538,84.369,84.341,0.87945062]
[1773049656138,0.90441538,84.369,84.331,0.87945062]
[1773049656339,0.90441538,84.368,84.331,0.87945062]
[1773049656551,1.18873852,84.366,84.331,0.87945062]
[1773049656762,0.90441538,84.365,84.331,0.87945062]
[1773049657540,0.90441538,84.339,84.291,3.69383402]
[1773049657839,0.90441538,84.329,84.29,11.56500106]
[1773049658358,0.90441538,84.329,84.271,3.69383402]
[1773049658359,0.90441538,84.329,84.3,11.56500106]
[1773049658540,12.76132618,84.339,84.301,11.86225548]
[1773049658739,0.90441538,84.338,84.301,11.86225548]
[1773049658954,11.8569108,84.339,84.31,11.56500106]
[1773049659166,0.90441538,84.338,84.301,11.86225548]
[1773049659370,41.4991878,84.339,84.29,29.65919728]
[1773049659371,0.90441538,84.329,84.29,11.56500106]
[1773049659569,0.90441538,84.329,84.291,0.87945062]
[1773049660660,11.85845745,84.328,84.302,11.86211477]
[1773049660857,0.90441538,84.327,84.294,0.87945062]
[1773049661059,42.40901645,84.328,84.294,0.87945062]
[1773049661250,0.90441538,84.327,84.294,0.87945062]
[1773049661969,11.85773965,84.334,84.301,0.87945062]
[1773049662155,0.90441538,84.333,84.301,0.87945062]
[1773049662355,0.90441538,84.329,84.301,0.87945062]
[1773049662749,0.90441538,84.327,84.296,11.86286152]
[1773049662956,0.90441538,84.327,84.295,0.87945062]
[1773049663668,0.90441538,84.327,84.301,0.87945062]
[1773049664051,0.90441538,84.334,84.301,0.87945062]
[1773049664268,11.85775437,84.333,84.301,0.87945062]
[1773049664760,11.8569108,84.339,84.311,0.87945062]
[1773049665159,12.76132618,84.339,84.311,0.87945062]
[1773049665754,12.76132618,84.339,84.313,0.87945062]
[1773049666167,11.8569108,84.339,84.313,0.87945062]
[1773049666470,11.8569108,84.339,84.321,0.87945062]
[1773049666770,29.63575882,84.358,84.321,0.87945062]
[1773049666968,0.14216157,84.375,84.312,41.51247745]
[1773049666969,11.85362305,84.363,84.331,0.87945062]
[1773049667173,0.90441538,84.362,84.331,0.87945062]
[1773049667775,0.90441538,84.36,84.331,0.87945062]
[1773049668068,4.32291132,84.35,84.305,3.69383402]
[1773049668266,0.9128077,84.349,84.31,4.32291132]
[1773049669562,0.9128077,84.349,84.31,11.57474737]
[1773049669774,0.9128077,84.347,84.311,11.86084852]
[1773049670272,0.9128077,84.347,84.31,11.57474737]
[1773049670475,0.9128077,84.339,84.305,11.86166613]
[1773049670660,1.19713084,84.347,84.311,0.88452607]
[1773049670861,0.9128077,84.345,84.311,0.88452607]
[1773049671161,0.28432314,84.346,84.303,0.88452607]
[1773049671162,0.9128077,84.339,84.303,0.88452607]
[1773049671471,0.9128077,84.329,84.29,11.57474737]
[1773049671775,11.57474737,84.33,84.29,23.43850098]
[1773049671776,0.9128077,84.327,84.29,23.43850098]
[1773049671959,0.28432314,84.326,84.29,11.57474737]
[1773049672164,0.9128077,84.325,84.291,0.88452607]
[1773049673070,0.9128077,84.325,84.3,11.57474737]
[1773049673573,0.9128077,84.325,84.294,0.88347887]
[1773049673869,0.9128077,84.323,84.291,11.86366278]
[1773049674070,0.9128077,84.319,84.29,11.57474737]
[1773049674577,0.9128077,84.319,84.281,11.86506546]
[1773049674873,11.85901997,84.324,84.301,0.87439394]
[1773049675556,0.9128077,84.323,84.293,0.86541336]
[1773049676371,11.85863313,84.327,84.3,12.4312833]
[1773049676573,0.9128077,84.326,84.3,12.4312833]
[1773049676952,0.9128077,84.326,84.294,41.52134196]
[1773049676953,11.85761377,84.334,84.31,12.42250783]
[1773049677369,11.85648905,84.342,84.32,11.57474737]
[1773049678475,0.9128077,84.351,84.32,11.57474737]
[1773049678476,0.9128077,84.349,84.32,11.57474737]
[1773049679478,0.9128077,84.349,84.312,11.8606457]
[1773049679853,0.9128077,84.349,84.31,11.57419847]
[1773049680257,0.9128077,84.349,84.311,11.86084852]
[1773049680453,0.9128077,84.349,84.31,11.57419847]
[1773049680454,0.9128077,84.347,84.32,11.57419847]
[1773049681279,0.9128077,84.347,84.321,0.81365504]
[1773049681475,0.9128077,84.365,84.331,0.81365504]
[1773049681777,0.9128077,84.359,84.33,11.57419847]
[1773049682078,0.9128077,84.359,84.32,11.57419847]
[1773049682274,0.9128077,84.349,84.314,0.8053721]
[1773049682579,0.9128077,84.347,84.315,11.86028583]
[1773049682964,0.9128077,84.347,84.32,11.57419847]
[1773049683776,0.9128077,84.347,84.321,11.85944189]
[1773049683975,11.85592677,84.346,84.321,11.85944189]
[1773049684167,12.64271178,84.346,84.321,11.85944189]
[1773049685082,0.78678501,84.345,84.321,11.85944189]
[1773049685880,0.78678501,84.343,84.314,0.8053721]
[1773049686381,0.78678501,84.358,84.321,0.76536282]
[1773049687265,0.78678501,84.358,84.32,11.57419847]
[1773049687464,0.78678501,84.349,84.32,11.57419847]
[1773049687884,0.78678501,84.347,84.32,11.57419847]
[1773049688159,0.78678501,84.347,84.314,11.8604265]
[1773049688392,0.78678501,84.347,84.32,11.57419847]
[1773049689077,0.78678501,84.347,84.314,11.8604265]
[1773049689276,0.78678501,84.347,84.314,12.60286984]
[1773049689869,11.85592677,84.346,84.314,12.60286984]
[1773049690075,0.78678501,84.339,84.307,0.73497835]
[1773049690276,0.78678501,84.339,84.3,4.32142617]
[1773049690277,0.78678501,84.339,84.3,16.18374207]
[1773049690504,0.78678501,84.329,84.301,11.86225548]
[1773049690669,0.78678501,84.329,84.302,0.73497835]
[1773049690991,0.78678501,84.339,84.302,0.73497835]
[1773049691164,0.78678501,84.339,84.31,5.04902526]
[1773049691670,0.78678501,84.339,84.31,0.72759909]
[1773049691872,0.78678501,84.337,84.311,11.86084852]
[1773049692173,0.78678501,84.337,84.311,12.58115311]
[1773049692382,0.78678501,84.337,84.311,11.86084852]
[1773049692775,0.78678501,84.337,84.304,0.72030459]
[1773049692974,4.32142617,84.33,84.299,15.55626832]
[1773049693178,0.78678501,84.329,84.3,4.32142617]
[1773049693691,0.78678501,84.337,84.31,4.32142617]
[1773049693987,0.78678501,84.337,84.312,41.51247745]
[1773049694191,0.78678501,84.336,84.312,11.86070784]
[1773049694576,0.78678501,84.336,84.31,4.32142617]
[1773049695897,0.78678501,84.334,84.308,11.86117963]
[1773049696573,0.78678501,84.334,84.304,0.70596598]
[1773049697268,41.5011561,84.335,84.221,19.60049694]
[1773049697269,0.78678501,84.329,84.29,4.32142617]
[1773049697489,0.78678501,84.329,84.282,29.66197322]
[1773049697490,0.78678501,84.319,84.284,0.68506978]
[1773049697687,0.78678501,84.329,84.301,0.68506978]
[1773049697889,0.78678501,84.327,84.302,11.86211477]
[1773049698088,0.78678501,84.327,84.303,0.67826377]
[1773049698286,0.78678501,84.327,84.297,11.86270425]
[1773049698489,0.78678501,84.326,84.29,4.32142617]
[1773049698800,0.78678501,84.325,84.291,11.86366278]
[1773049698978,0.78678501,84.325,84.292,0.67153594]
[1773049699179,0.78678501,84.325,84.29,4.32142617]
[1773049700779,0.14216157,84.327,84.275,29.66464945]
[1773049700780,0.78678501,84.323,84.285,12.5293927]
[1773049701005,0.78678501,84.323,84.29,4.32142617]
[1773049702585,0.78678501,84.319,84.28,4.32142617]
[1773049702775,0.78678501,84.317,84.281,11.86507041]
[1773049703104,0.78678501,84.317,84.29,4.32142617]
[1773049703479,0.78678501,84.317,84.288,0.64538853]
[1773049704501,0.78678501,84.317,84.281,12.50410871]
[1773049705010,0.78678501,84.315,84.281,11.86507041]
[1773049705404,41.51050808,84.316,84.29,4.32142617]
[1773049705707,11.86014516,84.316,84.291,0.63276101]
[1773049705886,0.78678501,84.315,84.291,0.63276101]
[1773049706804,0.78678501,84.315,84.282,0.62655582]
[1773049707406,41.51050808,84.316,84.284,0.6204219]
[1773049707407,0.78678501,84.313,84.284,0.6204219]
[1773049707707,0.78678501,84.313,84.29,4.94184807]
[1773049707998,0.78678501,84.313,84.291,0.61435844]
[1773049708312,11.85901997,84.324,84.291,0.61435844]
[1773049708477,0.78678501,84.323,84.29,4.32142617]
[1773049708679,0.78678501,84.323,84.283,41.52676102]
[1773049708884,0.78678501,84.323,84.284,0.61435844]
[1773049709400,0.78678501,84.323,84.29,4.32142617]
[1773049709786,11.85901997,84.324,84.291,11.86366278]
[1773049709787,0.78678501,84.321,84.291,11.86366278]
[1773049711207,0.78678501,84.319,84.28,16.18662716]
[1773049711588,0.78678501,84.319,84.281,0.59658273]
[1773049711989,0.78678501,84.317,84.281,0.59658273]
[1773049712985,0.78678501,84.317,84.28,4.32142617]
[1773049713187,0.68833331,84.299,84.264,0.57941252]
[1773049713386,0.68833331,84.289,84.261,11.86788668]
[1773049714391,0.68833331,84.299,84.27,4.32142617]
[1773049714706,0.68833331,84.299,84.271,0.57382009]
[1773049717103,41.51839814,84.3,84.271,0.57382009]
[1773049717104,0.68833331,84.297,84.271,0.57382009]
[1773049718487,11.8615022,84.307,84.28,4.32142617]
[1773049718694,0.68833331,84.306,84.281,0.55208537]
[1773049719206,0.68833331,84.328,84.291,0.54680682]
[1773049721519,0.68833331,84.326,84.293,0.53643091]
[1773049721700,0.68833331,84.326,84.301,0.53643091]
[1773049722593,0.68833331,84.326,84.293,0.53133216]
[1773049724914,0.68833331,84.326,84.29,4.32142617]
[1773049724915,12.51424163,84.325,84.295,0.51638463]
[1773049725217,0.6553623,84.324,84.295,0.51638463]
[1773049725798,0.6553623,84.324,84.288,0.51151614]
[1773049726003,0.6553623,84.324,84.291,11.86366278]
[1773049726418,0.6553623,84.324,84.289,11.86394428]
[1773049726916,0.6553623,84.317,84.285,11.86445536]
[1773049728017,0.6553623,84.317,84.281,0.50670356]
[1773049728223,0.6553623,84.317,84.281,0.49724361]
[1773049729926,0.6553623,84.315,84.281,12.36231402]
[1773049730823,0.6553623,84.315,84.281,11.86507041]
[1773049731122,0.6553623,84.321,84.291,0.48345726]
[1773049733130,29.64731774,84.325,84.293,0.47452825]
[1773049733422,29.64731774,84.325,84.3,4.32142617]
[1773049733628,0.6553623,84.324,84.3,4.79595442]
[1773049734004,0.6553623,84.324,84.3,0.47452825]
[1773049734205,0.6553623,84.324,84.293,0.47014052]
[1773049734630,11.85705138,84.338,84.311,0.47014052]
[1773049734920,0.6553623,84.355,84.311,0.47014052]
[1773049735105,0.6553623,84.353,84.32,4.32142617]
[1773049735522,0.6553623,84.353,84.313,0.46580318]
[1773049736204,4.32142617,84.35,84.313,0.46580318]
[1773049736402,0.6553623,84.349,84.313,0.46580318]
[1773049737725,0.6553623,84.347,84.314,11.8604265]
[1773049738723,0.6553623,84.347,84.321,0.45308781]
[1773049739029,0.6553623,84.347,84.32,4.32142617]
[1773049739723,11.85592677,84.346,84.321,11.85944189]
[1773049739926,0.6553623,84.345,84.321,11.85944189]
[1773049741024,0.6553623,84.339,84.301,11.86225548]
[1773049741206,0.6553623,84.339,84.301,12.30306104]
[1773049741607,0.6553623,84.339,84.302,0.44080556]
[1773049742009,0.6553623,84.337,84.3,4.32243049]
[1773049742226,0.6553623,84.336,84.301,11.86225548]
[1773049742425,0.6553623,84.329,84.301,11.86225548]
[1773049742728,0.6553623,84.329,84.3,4.32243049]
[1773049743607,0.64401904,84.327,84.298,11.86267764]
[1773049744808,0.64401904,84.327,84.294,0.42507757]
[1773049745020,0.64401904,84.327,84.29,4.32243049]
[1773049745230,0.64401904,84.327,84.267,0.42125783]
[1773049745231,0.64401904,84.299,84.267,0.42125783]
[1773049745611,4.32243049,84.3,84.267,0.42125783]
[1773049745612,0.64401904,84.297,84.268,11.86690084]
[1773049746334,0.64401904,84.297,84.271,0.41748196]
[1773049747336,0.64401904,84.289,84.264,0.41374946]
[1773049747511,0.64401904,84.289,84.26,0.2]
[1773049747706,0.64401904,84.277,84.26,0.2]
[1773049747925,0.64401904,84.277,84.25,0.2]
[1773049748118,0.64401904,84.269,84.25,0.2]
[1773049748326,4.32243049,84.26,84.24,0.2]
[1773049748624,0.64401904,84.259,84.24,0.2]
[1773049749131,0.64401904,84.249,84.23,0.2]
[1773049749429,41.5292247,84.278,84.232,0.40641258]
[1773049749430,0.64401904,84.262,84.232,0.40641258]
[1773049750040,0.64401904,84.261,84.233,11.8718317]
[1773049750330,0.64401904,84.259,84.23,12.07215466]
[1773049750528,0.64401904,84.259,84.231,0.40280723]
[1773049750713,4.32243049,84.28,84.23,12.07215466]
[1773049750714,0.64401904,84.299,84.241,0.40280723]
[1773049750909,0.64401904,84.269,84.233,0.40280723]
[1773049751113,0.64401904,84.269,84.241,0.39924328]
[1773049751312,0.64401904,84.269,84.23,41.75279101]
[1773049751313,0.64401904,84.276,84.251,0.39924328]
[1773049751910,0.64401904,84.274,84.242,0.39924328]
[1773049752327,0.64401904,84.274,84.25,4.32243049]
[1773049752732,0.64401904,84.293,84.261,0.39572027]
[1773049752932,0.64401904,84.292,84.26,4.32243049]
[1773049753530,0.64401904,84.292,84.26,4.71466821]
[1773049753712,0.64401904,84.292,84.261,0.39223772]
[1773049754137,0.64401904,84.29,84.26,4.32243049]
[1773049754922,0.64401904,84.29,84.261,11.86788668]
[1773049755438,11.86366278,84.291,84.27,4.32243049]
[1773049755732,0.64401904,84.29,84.27,4.32243049]
[1773049756234,0.64401904,84.288,84.26,4.32243049]
[1773049756538,11.86394428,84.289,84.25,4.32243049]
[1773049756539,0.64401904,84.279,84.25,4.32243049]
[1773049757534,0.64401904,84.279,84.246,11.86989668]
[1773049758419,4.32243049,84.28,84.246,11.86989668]
[1773049758420,0.64401904,84.277,84.246,0.37541589]
[1773049759140,0.64401904,84.277,84.241,11.87070428]
[1773049759343,11.86549277,84.278,84.223,0.37216656]
[1773049759344,0.64401904,84.259,84.223,0.37216656]
[1773049759540,0.64401904,84.249,84.22,4.52243049]
[1773049759846,0.64401904,84.249,84.22,0.2]
[1773049760024,0.64401904,84.249,84.22,4.52243049]
[1773049760221,0.64401904,84.249,84.223,0.36895455]
[1773049760421,0.64401904,84.257,84.223,0.36895455]
[1773049760622,0.64401904,84.265,84.24,4.32243049]
[1773049760830,11.86746416,84.264,84.24,4.69138504]